[Event "Titled Tuesday Blitz November 15 Late 2022"]
[White "Melian, Juan Sebastian"]
[Black "Huber, Benedikt"]
[WhiteFideId "3706575"]
[BlackFideId "12923583"]
[WhiteElo "2044"]
[BlackElo "2199"]
[Result "0-1"]
[Round "05"]
[TimeControl "180+1"]
[Date "2022.11.16"]
[WhiteClock "0:00:02"]
[BlackClock "0:00:49"]

1. d4 {[%clk 0:03:00]}  e6 {[%clk 0:02:56]} 2. c4 {[%clk 0:03:01]}  f5 {[%clk 0:02:57]} 3. Nc3 {[%clk 0:02:58]}  Nf6 {[%clk 0:02:57]} 4. Qc2 {[%clk 0:02:55]}  Bb4 {[%clk 0:02:58]} 5. e3 {[%clk 0:02:54]}  O-O {[%clk 0:02:57]} 6. Bd3 {[%clk 0:02:54]}  b6 {[%clk 0:02:57]} 7. Ne2 {[%clk 0:02:47]}  Bb7 {[%clk 0:02:57]} 8. O-O {[%clk 0:02:47]}  Bxc3 {[%clk 0:02:44]} 9. bxc3 {[%clk 0:02:46]}  d6 {[%clk 0:02:45]} 10. f3 {[%clk 0:02:45]}  Nbd7 {[%clk 0:02:42]} 11. e4 {[%clk 0:02:43]}  fxe4 {[%clk 0:02:43]} 12. fxe4 {[%clk 0:02:44]}  e5 {[%clk 0:02:43]} 13. Bg5 {[%clk 0:02:40]}  Qe8 {[%clk 0:02:43]} 14. Ng3 {[%clk 0:02:30]}  Qg6 {[%clk 0:02:41]} 15. Bxf6 {[%clk 0:02:21]}  Nxf6 {[%clk 0:02:41]} 16. Rf3 {[%clk 0:02:16]}  c5 {[%clk 0:02:24]} 17. Nf5 {[%clk 0:02:05]}  Qe8 {[%clk 0:01:36]} 18. Nxd6 {[%clk 0:01:47]}  Qc6 {[%clk 0:01:34]} 19. dxe5 {[%clk 0:01:40]}  Nd7 {[%clk 0:01:34]} 20. Nf5 {[%clk 0:00:59]}  Rae8 {[%clk 0:01:25]} 21. Rg3 {[%clk 0:00:57]}  g6 {[%clk 0:01:21]} 22. h4 {[%clk 0:00:27]}  Nxe5 {[%clk 0:01:21]} 23. h5 {[%clk 0:00:27]}  Nxd3 {[%clk 0:01:07]} 24. Qxd3 {[%clk 0:00:22]}  Qxe4 {[%clk 0:01:07]} 25. hxg6 {[%clk 0:00:19]}  Qxd3 {[%clk 0:01:04]} 26. gxh7+ {[%clk 0:00:17]}  Kh8 {[%clk 0:01:02]} 27. Rxd3 {[%clk 0:00:14]}  Be4 {[%clk 0:01:02]} 28. Rd7 {[%clk 0:00:10]}  Rxf5 {[%clk 0:00:58]} 29. Rxa7 {[%clk 0:00:10]}  Rg5 {[%clk 0:00:57]} 30. Rf7 {[%clk 0:00:08]}  Rxg2+ {[%clk 0:00:57]} 31. Kf1 {[%clk 0:00:09]}  Rh2 {[%clk 0:00:54]} 32. Rd1 {[%clk 0:00:05]}  Rh1+ {[%clk 0:00:52]} 33. Ke2 {[%clk 0:00:04]}  Bg6+ {[%clk 0:00:51]} 34. Kf2 {[%clk 0:00:02]}  Rxd1 {[%clk 0:00:49]} 35. Rf6 {[%clk 0:00:02]} 0-1


[Site "https://www.chess.com"]

[Event "Titled Tuesday Blitz November 15 Late 2022"]
[White "Melikhov, Evgeny V."]
[Black "Garcia Ramos, Daniel"]
[WhiteFideId "4122046"]
[BlackFideId "32010311"]
[WhiteElo "2169"]
[BlackElo "2357"]
[Result "0-1"]
[Round "05"]
[TimeControl "180+1"]
[Date "2022.11.16"]
[WhiteClock "0:00:05"]
[BlackClock "0:01:41"]

1. d4 {[%clk 0:03:00]}  d5 {[%clk 0:02:55]} 2. c4 {[%clk 0:03:00]}  e6 {[%clk 0:02:55]} 3. Nc3 {[%clk 0:03:00]}  Nf6 {[%clk 0:02:55]} 4. cxd5 {[%clk 0:03:00]}  exd5 {[%clk 0:02:55]} 5. Bg5 {[%clk 0:03:00]}  c6 {[%clk 0:02:56]} 6. Qc2 {[%clk 0:03:00]}  h6 {[%clk 0:02:56]} 7. Bh4 {[%clk 0:02:59]}  Be7 {[%clk 0:02:56]} 8. e3 {[%clk 0:02:59]}  O-O {[%clk 0:02:57]} 9. Bd3 {[%clk 0:02:57]}  Re8 {[%clk 0:02:57]} 10. Nf3 {[%clk 0:02:51]}  Ne4 {[%clk 0:02:57]} 11. Bxe4 {[%clk 0:02:45]}  Bxh4 {[%clk 0:02:54]} 12. Bh7+ {[%clk 0:02:42]}  Kh8 {[%clk 0:02:53]} 13. Nxh4 {[%clk 0:02:32]}  Qxh4 {[%clk 0:02:51]} 14. O-O-O {[%clk 0:01:48]}  g6 {[%clk 0:02:39]} 15. Bxg6 {[%clk 0:01:46]}  fxg6 {[%clk 0:02:40]} 16. Qxg6 {[%clk 0:01:45]}  Re6 {[%clk 0:02:40]} 17. Qf7 {[%clk 0:01:31]}  Qe7 {[%clk 0:02:40]} 18. Qxe7 {[%clk 0:00:57]}  Rxe7 {[%clk 0:02:36]} 19. h3 {[%clk 0:00:57]}  Bf5 {[%clk 0:02:35]} 20. g4 {[%clk 0:00:55]}  Bh7 {[%clk 0:02:33]} 21. Ne2 {[%clk 0:00:50]}  Nd7 {[%clk 0:02:33]} 22. Nf4 {[%clk 0:00:47]}  Nf6 {[%clk 0:02:32]} 23. Kd2 {[%clk 0:00:33]}  Rf8 {[%clk 0:02:27]} 24. f3 {[%clk 0:00:29]}  Ne8 {[%clk 0:02:22]} 25. h4 {[%clk 0:00:24]}  Nd6 {[%clk 0:02:21]} 26. b3 {[%clk 0:00:24]}  Nb5 {[%clk 0:02:19]} 27. Nd3 {[%clk 0:00:20]}  Bxd3 {[%clk 0:02:15]} 28. Kxd3 {[%clk 0:00:20]}  Rxf3 {[%clk 0:02:16]} 29. Rde1 {[%clk 0:00:20]}  Re4 {[%clk 0:02:14]} 30. g5 {[%clk 0:00:20]}  h5 {[%clk 0:02:11]} 31. Rhf1 {[%clk 0:00:18]}  Nxd4 {[%clk 0:02:10]} 32. Rxf3 {[%clk 0:00:16]}  Nxf3 {[%clk 0:02:10]} 33. Rf1 {[%clk 0:00:17]}  Nxh4 {[%clk 0:02:09]} 34. Rf7 {[%clk 0:00:17]}  Ng2 {[%clk 0:02:08]} 35. Rxb7 {[%clk 0:00:14]}  Rxe3+ {[%clk 0:02:06]} 36. Kd4 {[%clk 0:00:15]}  Rg3 {[%clk 0:02:04]} 37. Ke5 {[%clk 0:00:10]}  Rxg5+ {[%clk 0:02:00]} 38. Kf6 {[%clk 0:00:11]}  Rg4 {[%clk 0:01:59]} 39. Rb8+ {[%clk 0:00:10]}  Kh7 {[%clk 0:02:00]} 40. Rb7+ {[%clk 0:00:11]}  Kh6 {[%clk 0:02:00]} 41. Rb8 {[%clk 0:00:10]}  Rf4+ {[%clk 0:01:59]} 42. Ke5 {[%clk 0:00:10]}  Kg7 {[%clk 0:01:47]} 43. Rb7+ {[%clk 0:00:08]}  Rf7 {[%clk 0:01:46]} 44. Rb4 {[%clk 0:00:06]}  Nf4 {[%clk 0:01:41]} 45. Rxf4 {[%clk 0:00:04]}  Rxf4 {[%clk 0:01:41]} 46. Kxf4 {[%clk 0:00:05]}  Kf6 {[%clk 0:01:41]} 0-1


[Site "https://www.chess.com"]

[Event "Titled Tuesday Blitz November 15 Late 2022"]
[White "Mendonca, Mateus Nakajo"]
[Black "Aguilar, Juan"]
[WhiteFideId "2110954"]
[BlackFideId "3800091"]
[WhiteElo "2310"]
[BlackElo "2438"]
[Result "0-1"]
[Round "05"]
[TimeControl "180+1"]
[Date "2022.11.16"]
[WhiteClock "0:00:03"]
[BlackClock "0:00:33"]

1. d4 {[%clk 0:03:00]}  Nf6 {[%clk 0:02:58]} 2. Nf3 {[%clk 0:03:00]}  g6 {[%clk 0:02:59]} 3. g3 {[%clk 0:03:01]}  Bg7 {[%clk 0:02:59]} 4. Bg2 {[%clk 0:03:01]}  d6 {[%clk 0:02:59]} 5. O-O {[%clk 0:03:02]}  O-O {[%clk 0:02:59]} 6. b3 {[%clk 0:03:03]}  Nc6 {[%clk 0:02:58]} 7. Bb2 {[%clk 0:03:02]}  Bf5 {[%clk 0:02:53]} 8. c4 {[%clk 0:02:47]}  Qd7 {[%clk 0:02:52]} 9. Re1 {[%clk 0:02:42]}  Bh3 {[%clk 0:02:45]} 10. Bh1 {[%clk 0:02:42]}  Rad8 {[%clk 0:02:42]} 11. Nbd2 {[%clk 0:02:30]}  e5 {[%clk 0:02:35]} 12. d5 {[%clk 0:02:23]}  Ne7 {[%clk 0:02:23]} 13. Ng5 {[%clk 0:02:11]}  h6 {[%clk 0:02:20]} 14. Nxh3 {[%clk 0:02:11]}  Qxh3 {[%clk 0:02:21]} 15. Bg2 {[%clk 0:02:08]}  Qd7 {[%clk 0:02:21]} 16. e4 {[%clk 0:02:04]}  Nh7 {[%clk 0:02:16]} 17. Qc2 {[%clk 0:01:59]}  f5 {[%clk 0:02:15]} 18. exf5 {[%clk 0:01:56]}  gxf5 {[%clk 0:02:11]} 19. c5 {[%clk 0:01:54]}  f4 {[%clk 0:02:01]} 20. Rac1 {[%clk 0:01:51]}  Ng5 {[%clk 0:01:57]} 21. cxd6 {[%clk 0:01:41]}  cxd6 {[%clk 0:01:55]} 22. Qc7 {[%clk 0:01:36]}  fxg3 {[%clk 0:01:39]} 23. fxg3 {[%clk 0:01:10]}  Nf5 {[%clk 0:01:39]} 24. h4 {[%clk 0:00:59]}  Nh7 {[%clk 0:01:31]} 25. Ne4 {[%clk 0:00:54]}  Nf6 {[%clk 0:01:24]} 26. Qxd7 {[%clk 0:00:50]}  Rxd7 {[%clk 0:01:23]} 27. Nxf6+ {[%clk 0:00:50]}  Rxf6 {[%clk 0:01:24]} 28. Rc8+ {[%clk 0:00:46]}  Rf8 {[%clk 0:01:21]} 29. Rxf8+ {[%clk 0:00:44]}  Bxf8 {[%clk 0:01:22]} 30. Bh3 {[%clk 0:00:43]}  Rf7 {[%clk 0:01:22]} 31. Kg2 {[%clk 0:00:34]}  Kg7 {[%clk 0:01:21]} 32. Bc1 {[%clk 0:00:29]}  Nd4 {[%clk 0:01:15]} 33. Bg4 {[%clk 0:00:26]}  Be7 {[%clk 0:01:12]} 34. Bd2 {[%clk 0:00:24]}  Bd8 {[%clk 0:01:11]} 35. Rc1 {[%clk 0:00:22]}  Bb6 {[%clk 0:01:11]} 36. Bb4 {[%clk 0:00:20]}  Rf6 {[%clk 0:01:04]} 37. Rf1 {[%clk 0:00:20]}  Nc2 {[%clk 0:00:50]} 38. Rxf6 {[%clk 0:00:18]}  Kxf6 {[%clk 0:00:51]} 39. Bxd6 {[%clk 0:00:16]}  Ne3+ {[%clk 0:00:51]} 40. Kh3 {[%clk 0:00:16]}  Nxd5 {[%clk 0:00:50]} 41. Bf3 {[%clk 0:00:16]}  Nc3 {[%clk 0:00:48]} 42. a4 {[%clk 0:00:08]}  e4 {[%clk 0:00:48]} 43. Bb4 {[%clk 0:00:09]}  exf3 {[%clk 0:00:42]} 44. Bxc3+ {[%clk 0:00:09]}  Kf5 {[%clk 0:00:43]} 45. Bd2 {[%clk 0:00:07]}  h5 {[%clk 0:00:42]} 46. Kh2 {[%clk 0:00:06]}  Ke4 {[%clk 0:00:39]} 47. g4 {[%clk 0:00:03]}  Bc7+ {[%clk 0:00:35]} 48. Kh3 {[%clk 0:00:03]}  hxg4+ {[%clk 0:00:33]} 49. Kxg4 {[%clk 0:00:03]}  f2 {[%clk 0:00:33]} 0-1


[Site "https://www.chess.com"]

[Event "Titled Tuesday Blitz November 15 Late 2022"]
[White "Mickiewicz, Piotr"]
[Black "Przybylski, Wojciech"]
[WhiteFideId "1114891"]
[BlackFideId "1117599"]
[WhiteElo "2246"]
[BlackElo "2221"]
[Result "1-0"]
[Round "05"]
[TimeControl "180+1"]
[Date "2022.11.16"]
[WhiteClock "0:00:21"]
[BlackClock "0:00:04"]

1. e4 {[%clk 0:03:00]}  c5 {[%clk 0:02:59]} 2. Nf3 {[%clk 0:02:56]}  e6 {[%clk 0:02:58]} 3. c3 {[%clk 0:02:55]}  Nf6 {[%clk 0:02:53]} 4. e5 {[%clk 0:02:55]}  Nd5 {[%clk 0:02:52]} 5. d4 {[%clk 0:02:56]}  cxd4 {[%clk 0:02:51]} 6. cxd4 {[%clk 0:02:57]}  d6 {[%clk 0:02:52]} 7. a3 {[%clk 0:02:57]}  Be7 {[%clk 0:02:51]} 8. Bd3 {[%clk 0:02:56]}  O-O {[%clk 0:02:51]} 9. O-O {[%clk 0:02:56]}  b6 {[%clk 0:02:51]} 10. Qe2 {[%clk 0:02:55]}  Bb7 {[%clk 0:02:47]} 11. Qe4 {[%clk 0:02:47]}  g6 {[%clk 0:02:45]} 12. Bh6 {[%clk 0:02:45]}  Re8 {[%clk 0:02:45]} 13. Nbd2 {[%clk 0:02:39]}  Nd7 {[%clk 0:02:37]} 14. Qg4 {[%clk 0:01:57]}  dxe5 {[%clk 0:02:28]} 15. dxe5 {[%clk 0:01:57]}  a6 {[%clk 0:02:10]} 16. Rad1 {[%clk 0:01:53]}  Qc7 {[%clk 0:02:01]} 17. Rfe1 {[%clk 0:01:49]}  Rad8 {[%clk 0:01:54]} 18. h4 {[%clk 0:01:46]}  Nc5 {[%clk 0:01:49]} 19. Bb1 {[%clk 0:01:38]}  Qc6 {[%clk 0:01:35]} 20. h5 {[%clk 0:01:28]}  Qa4 {[%clk 0:01:29]} 21. b4 {[%clk 0:01:09]}  Kh8 {[%clk 0:00:47]} 22. hxg6 {[%clk 0:01:04]}  fxg6 {[%clk 0:00:47]} 23. Ng5 {[%clk 0:00:42]}  Nc3 {[%clk 0:00:39]} 24. Nf7+ {[%clk 0:00:29]}  Kg8 {[%clk 0:00:37]} 25. Bxg6 {[%clk 0:00:29]}  Ne2+ {[%clk 0:00:23]} 26. Kh2 {[%clk 0:00:26]}  Ne4 {[%clk 0:00:04]} 27. Bxh7+ {[%clk 0:00:21]} 1-0


[Site "https://www.chess.com"]

[Event "Titled Tuesday Blitz November 15 Late 2022"]
[White "Miszler, Levente"]
[Black "Burke, Paul"]
[WhiteFideId "763276"]
[BlackFideId "2605767"]
[WhiteElo "2176"]
[BlackElo "1816"]
[Result "1-0"]
[Round "05"]
[TimeControl "180+1"]
[Date "2022.11.16"]
[WhiteClock "0:00:42"]
[BlackClock "0:00:09"]

1. e4 {[%clk 0:03:00]}  e5 {[%clk 0:02:58]} 2. Nf3 {[%clk 0:03:00]}  Nc6 {[%clk 0:02:58]} 3. Bc4 {[%clk 0:02:55]}  Be7 {[%clk 0:02:57]} 4. O-O {[%clk 0:02:54]}  Nf6 {[%clk 0:02:56]} 5. d3 {[%clk 0:02:51]}  O-O {[%clk 0:02:56]} 6. Nc3 {[%clk 0:02:49]}  d6 {[%clk 0:02:56]} 7. a3 {[%clk 0:02:48]}  Bg4 {[%clk 0:02:56]} 8. h3 {[%clk 0:02:48]}  Bh5 {[%clk 0:02:55]} 9. Be3 {[%clk 0:02:48]}  Nd4 {[%clk 0:02:52]} 10. Bxd4 {[%clk 0:02:47]}  exd4 {[%clk 0:02:52]} 11. Nd5 {[%clk 0:02:46]}  Nxd5 {[%clk 0:02:50]} 12. Bxd5 {[%clk 0:02:46]}  c6 {[%clk 0:02:44]} 13. Bb3 {[%clk 0:02:46]}  Bf6 {[%clk 0:02:22]} 14. g4 {[%clk 0:02:40]}  Bg6 {[%clk 0:02:21]} 15. Ne1 {[%clk 0:02:39]}  h6 {[%clk 0:02:11]} 16. f4 {[%clk 0:02:39]}  d5 {[%clk 0:02:03]} 17. e5 {[%clk 0:02:37]}  Be7 {[%clk 0:01:52]} 18. Qf3 {[%clk 0:02:30]}  Qc7 {[%clk 0:01:43]} 19. Ng2 {[%clk 0:02:27]}  f5 {[%clk 0:01:37]} 20. Rae1 {[%clk 0:02:13]}  Rae8 {[%clk 0:01:31]} 21. Qf2 {[%clk 0:02:11]}  b6 {[%clk 0:01:25]} 22. Kh2 {[%clk 0:02:02]}  Kh8 {[%clk 0:01:21]} 23. Nh4 {[%clk 0:01:40]}  Bh7 {[%clk 0:01:18]} 24. Qg3 {[%clk 0:01:22]}  Bxh4 {[%clk 0:01:11]} 25. Qxh4 {[%clk 0:01:22]}  Qe7 {[%clk 0:01:05]} 26. g5 {[%clk 0:01:15]}  a5 {[%clk 0:00:54]} 27. c3 {[%clk 0:01:05]}  dxc3 {[%clk 0:00:52]} 28. bxc3 {[%clk 0:01:06]}  Rd8 {[%clk 0:00:41]} 29. d4 {[%clk 0:01:01]}  Rde8 {[%clk 0:00:40]} 30. Bc2 {[%clk 0:01:00]}  Rd8 {[%clk 0:00:36]} 31. Rb1 {[%clk 0:00:59]}  Rb8 {[%clk 0:00:33]} 32. Qh5 {[%clk 0:00:56]}  Qf7 {[%clk 0:00:28]} 33. Qxf7 {[%clk 0:00:49]}  Rxf7 {[%clk 0:00:27]} 34. h4 {[%clk 0:00:49]}  hxg5 {[%clk 0:00:25]} 35. hxg5 {[%clk 0:00:49]}  Bg6 {[%clk 0:00:25]} 36. Kg3 {[%clk 0:00:50]}  Kg8 {[%clk 0:00:24]} 37. Rh1 {[%clk 0:00:48]}  Rff8 {[%clk 0:00:16]} 38. a4 {[%clk 0:00:46]}  Kf7 {[%clk 0:00:16]} 39. Bd3 {[%clk 0:00:46]}  Ke7 {[%clk 0:00:16]} 40. Rb2 {[%clk 0:00:46]}  Rb7 {[%clk 0:00:14]} 41. Rhb1 {[%clk 0:00:45]}  Rfb8 {[%clk 0:00:13]} 42. Ba6 {[%clk 0:00:46]}  Ra7 {[%clk 0:00:12]} 43. Rxb6 {[%clk 0:00:46]}  Rxb6 {[%clk 0:00:11]} 44. Rxb6 {[%clk 0:00:46]}  Bh5 {[%clk 0:00:09]} 45. Rxc6 {[%clk 0:00:43]}  g6 {[%clk 0:00:09]} 46. Bb5 {[%clk 0:00:42]} 1-0


[Site "https://www.chess.com"]

[Event "Titled Tuesday Blitz November 15 Late 2022"]
[White "Molenda, Marcin"]
[Black "Szente Varga, Fruzsina"]
[WhiteFideId "1173065"]
[BlackFideId "712264"]
[WhiteElo "2281"]
[BlackElo "1994"]
[Result "1-0"]
[Round "05"]
[TimeControl "180+1"]
[Date "2022.11.16"]
[WhiteClock "0:01:28"]
[BlackClock "0:00:13"]

1. d4 {[%clk 0:03:00]}  Nf6 {[%clk 0:03:00]} 2. c4 {[%clk 0:02:59]}  g6 {[%clk 0:02:59]} 3. Nc3 {[%clk 0:02:59]}  Bg7 {[%clk 0:02:59]} 4. e4 {[%clk 0:03:00]}  d6 {[%clk 0:03:00]} 5. f4 {[%clk 0:03:00]}  O-O {[%clk 0:02:59]} 6. Nf3 {[%clk 0:03:01]}  c5 {[%clk 0:02:57]} 7. d5 {[%clk 0:03:01]}  e6 {[%clk 0:02:57]} 8. Be2 {[%clk 0:03:02]}  exd5 {[%clk 0:02:57]} 9. cxd5 {[%clk 0:03:03]}  Re8 {[%clk 0:02:57]} 10. e5 {[%clk 0:03:03]}  dxe5 {[%clk 0:02:56]} 11. fxe5 {[%clk 0:03:03]}  Ng4 {[%clk 0:02:56]} 12. e6 {[%clk 0:03:04]}  fxe6 {[%clk 0:02:50]} 13. d6 {[%clk 0:03:04]}  Nc6 {[%clk 0:02:46]} 14. O-O {[%clk 0:02:59]}  Nd4 {[%clk 0:02:23]} 15. Ne4 {[%clk 0:02:54]}  b6 {[%clk 0:01:58]} 16. Bg5 {[%clk 0:02:48]}  Qd7 {[%clk 0:01:50]} 17. Nxd4 {[%clk 0:02:43]}  Bxd4+ {[%clk 0:01:49]} 18. Qxd4 {[%clk 0:02:44]}  cxd4 {[%clk 0:01:47]} 19. Bxg4 {[%clk 0:02:44]}  Qb5 {[%clk 0:01:32]} 20. Nf6+ {[%clk 0:02:38]}  Kf7 {[%clk 0:01:22]} 21. Rac1 {[%clk 0:02:01]}  Bd7 {[%clk 0:00:20]} 22. Rc7 {[%clk 0:01:49]}  Red8 {[%clk 0:00:19]} 23. Nxd7+ {[%clk 0:01:40]}  Kg7 {[%clk 0:00:14]} 24. Nf6+ {[%clk 0:01:37]}  Kf8 {[%clk 0:00:14]} 25. Nxh7+ {[%clk 0:01:29]}  Ke8 {[%clk 0:00:13]} 26. Rf8# {[%clk 0:01:28]} 1-0


[Site "https://www.chess.com"]

[Event "Titled Tuesday Blitz November 15 Late 2022"]
[White "Naroditsky, Daniel"]
[Black "Pultinevicius, Paulius"]
[WhiteFideId "2026961"]
[BlackFideId "12809390"]
[WhiteElo "2628"]
[BlackElo "2493"]
[Result "0-1"]
[Round "05"]
[TimeControl "180+1"]
[Date "2022.11.15"]
[WhiteClock "0:00:02"]
[BlackClock "0:00:10"]

1. e4 {[%clk 0:03:00]}  c6 {[%clk 0:02:59]} 2. Ne2 {[%clk 0:02:53]}  d5 {[%clk 0:02:58]} 3. e5 {[%clk 0:02:54]}  d4 {[%clk 0:02:58]} 4. Nf4 {[%clk 0:02:44]}  Qc7 {[%clk 0:02:44]} 5. Nd3 {[%clk 0:02:23]}  Bf5 {[%clk 0:02:41]} 6. f4 {[%clk 0:02:21]}  e6 {[%clk 0:02:39]} 7. Be2 {[%clk 0:02:19]}  c5 {[%clk 0:02:38]} 8. b3 {[%clk 0:02:14]}  Nc6 {[%clk 0:02:29]} 9. O-O {[%clk 0:02:13]}  Nge7 {[%clk 0:02:21]} 10. a4 {[%clk 0:02:06]}  Nd5 {[%clk 0:02:19]} 11. Na3 {[%clk 0:02:07]}  Be7 {[%clk 0:02:01]} 12. Nc4 {[%clk 0:02:06]}  O-O {[%clk 0:01:59]} 13. Qe1 {[%clk 0:01:50]}  Ncb4 {[%clk 0:01:52]} 14. Qd1 {[%clk 0:01:46]}  Nxd3 {[%clk 0:01:47]} 15. cxd3 {[%clk 0:01:47]}  h6 {[%clk 0:01:43]} 16. Ba3 {[%clk 0:01:45]}  b6 {[%clk 0:01:42]} 17. Rc1 {[%clk 0:01:45]}  Qd7 {[%clk 0:01:35]} 18. Qe1 {[%clk 0:01:34]}  Rab8 {[%clk 0:01:22]} 19. g4 {[%clk 0:01:30]}  Bh7 {[%clk 0:01:21]} 20. Qg3 {[%clk 0:01:31]}  a6 {[%clk 0:01:15]} 21. g5 {[%clk 0:01:18]}  hxg5 {[%clk 0:01:11]} 22. fxg5 {[%clk 0:01:19]}  b5 {[%clk 0:01:10]} 23. Nd6 {[%clk 0:01:09]}  Bxd6 {[%clk 0:00:45]} 24. exd6 {[%clk 0:01:10]}  b4 {[%clk 0:00:46]} 25. Bb2 {[%clk 0:01:10]}  Rfc8 {[%clk 0:00:46]} 26. h4 {[%clk 0:01:04]}  Rb6 {[%clk 0:00:33]} 27. h5 {[%clk 0:01:00]}  Bf5 {[%clk 0:00:30]} 28. Qe5 {[%clk 0:00:55]}  f6 {[%clk 0:00:19]} 29. Qg3 {[%clk 0:00:43]}  Kh7 {[%clk 0:00:20]} 30. Rf2 {[%clk 0:00:19]}  e5 {[%clk 0:00:20]} 31. Rcf1 {[%clk 0:00:09]}  Nf4 {[%clk 0:00:20]} 32. Rxf4 {[%clk 0:00:09]}  exf4 {[%clk 0:00:21]} 33. Rxf4 {[%clk 0:00:10]}  Re8 {[%clk 0:00:16]} 34. Bf3 {[%clk 0:00:06]}  Qxd6 {[%clk 0:00:15]} 35. Kf2 {[%clk 0:00:07]}  Qe5 {[%clk 0:00:15]} 36. Rxf5 {[%clk 0:00:05]}  Qxf5 {[%clk 0:00:15]} 37. g6+ {[%clk 0:00:02]}  Kh8 {[%clk 0:00:12]} 38. h6 {[%clk 0:00:03]}  Rbe6 {[%clk 0:00:09]} 39. hxg7+ {[%clk 0:00:02]}  Kxg7 {[%clk 0:00:10]} 40. Kg1 {[%clk 0:00:01]}  Re1+ {[%clk 0:00:10]} 41. Kg2 {[%clk 0:00:02]}  R8e2+ {[%clk 0:00:10]} 42. Bxe2 {[%clk 0:00:03]}  Rxe2+ {[%clk 0:00:10]} 43. Kg1 {[%clk 0:00:04]}  Qxg6 {[%clk 0:00:09]} 44. Qxg6+ {[%clk 0:00:02]}  Kxg6 {[%clk 0:00:10]} 0-1


[Site "https://www.chess.com"]

[Event "Titled Tuesday Blitz November 15 Late 2022"]
[White "Pein, Jonathan"]
[Black "Quirke, Jeffrey"]
[WhiteFideId "417092"]
[BlackFideId "2013029"]
[WhiteElo "2227"]
[BlackElo "2209"]
[Result "0-1"]
[Round "05"]
[TimeControl "180+1"]
[Date "2022.11.16"]
[WhiteClock "0:00:29"]
[BlackClock "0:00:11"]

1. e4 {[%clk 0:02:54]}  c5 {[%clk 0:02:57]} 2. Nf3 {[%clk 0:02:53]}  Nc6 {[%clk 0:02:56]} 3. d4 {[%clk 0:02:53]}  cxd4 {[%clk 0:02:56]} 4. Nxd4 {[%clk 0:02:53]}  Nf6 {[%clk 0:02:55]} 5. Nc3 {[%clk 0:02:51]}  d6 {[%clk 0:02:56]} 6. Nb3 {[%clk 0:02:38]}  e5 {[%clk 0:02:47]} 7. f4 {[%clk 0:02:27]}  Be7 {[%clk 0:02:39]} 8. Be2 {[%clk 0:02:27]}  O-O {[%clk 0:02:38]} 9. O-O {[%clk 0:02:23]}  a6 {[%clk 0:02:38]} 10. Be3 {[%clk 0:02:19]}  b5 {[%clk 0:02:38]} 11. Nd5 {[%clk 0:02:18]}  exf4 {[%clk 0:01:59]} 12. Nxe7+ {[%clk 0:02:13]}  Qxe7 {[%clk 0:01:56]} 13. Bxf4 {[%clk 0:02:13]}  Ne5 {[%clk 0:01:42]} 14. Bg5 {[%clk 0:02:10]}  Qa7+ {[%clk 0:01:37]} 15. Kh1 {[%clk 0:02:08]}  Nxe4 {[%clk 0:01:32]} 16. Bh4 {[%clk 0:01:56]}  Bb7 {[%clk 0:01:21]} 17. Bd3 {[%clk 0:01:56]}  Nxd3 {[%clk 0:01:11]} 18. cxd3 {[%clk 0:01:55]}  Nc5 {[%clk 0:01:05]} 19. Qg4 {[%clk 0:01:08]}  Nxb3 {[%clk 0:01:00]} 20. Bf6 {[%clk 0:01:07]}  g6 {[%clk 0:00:59]} 21. axb3 {[%clk 0:00:54]}  Qe3 {[%clk 0:00:21]} 22. Rae1 {[%clk 0:00:46]}  h5 {[%clk 0:00:20]} 23. Qd7 {[%clk 0:00:35]}  Qb6 {[%clk 0:00:15]} 24. Bc3 {[%clk 0:00:19]}  Qc6 {[%clk 0:00:15]} 25. Qh3 {[%clk 0:00:17]}  Rfe8 {[%clk 0:00:14]} 26. Qg3 {[%clk 0:00:15]}  Rxe1 {[%clk 0:00:11]} 27. Rxe1 {[%clk 0:00:16]}  Re8 {[%clk 0:00:10]} 28. Rf1 {[%clk 0:00:15]}  Qd5 {[%clk 0:00:10]} 29. h4 {[%clk 0:00:15]}  Kh7 {[%clk 0:00:08]} 30. Rf2 {[%clk 0:00:13]}  Re7 {[%clk 0:00:06]} 31. Qf4 {[%clk 0:00:13]}  Qe6 {[%clk 0:00:03]} 32. Bd2 {[%clk 0:00:12]}  Kg8 {[%clk 0:00:03]} 33. Qh6 {[%clk 0:00:10]}  Qg4 {[%clk 0:00:02]} 34. Qf4 {[%clk 0:00:10]}  Qxf4 {[%clk 0:00:02]} 35. Bxf4 {[%clk 0:00:11]}  Re6 {[%clk 0:00:01]} 36. Rc2 {[%clk 0:00:10]}  Bd5 {[%clk 0:00:02]} 37. b4 {[%clk 0:00:10]}  Kh7 {[%clk 0:00:02]} 38. Kg1 {[%clk 0:00:10]}  f6 {[%clk 0:00:02]} 39. Kf2 {[%clk 0:00:10]}  g5 {[%clk 0:00:02]} 40. hxg5 {[%clk 0:00:10]}  fxg5 {[%clk 0:00:03]} 41. Bxg5 {[%clk 0:00:11]}  Rg6 {[%clk 0:00:03]} 42. Bf4 {[%clk 0:00:11]}  Rxg2+ {[%clk 0:00:04]} 43. Ke3 {[%clk 0:00:11]}  Rxc2 {[%clk 0:00:05]} 44. Bxd6 {[%clk 0:00:11]}  Rxb2 {[%clk 0:00:05]} 45. Kd4 {[%clk 0:00:12]}  Rb3 {[%clk 0:00:05]} 46. Bc5 {[%clk 0:00:13]}  Be6 {[%clk 0:00:05]} 47. Ke3 {[%clk 0:00:14]}  Bf7 {[%clk 0:00:05]} 48. Kf4 {[%clk 0:00:13]}  Rb1 {[%clk 0:00:05]} 49. d4 {[%clk 0:00:14]}  h4 {[%clk 0:00:05]} 50. Kg4 {[%clk 0:00:15]}  Rh1 {[%clk 0:00:05]} 51. d5 {[%clk 0:00:15]}  Bxd5 {[%clk 0:00:05]} 52. Be3 {[%clk 0:00:14]}  Bc4 {[%clk 0:00:06]} 53. Bf4 {[%clk 0:00:15]}  Kg6 {[%clk 0:00:06]} 54. Bg3 {[%clk 0:00:15]}  Kf7 {[%clk 0:00:07]} 55. Bxh4 {[%clk 0:00:16]}  Rxh4+ {[%clk 0:00:06]} 56. Kxh4 {[%clk 0:00:16]}  Ke6 {[%clk 0:00:07]} 57. Kg4 {[%clk 0:00:17]}  Kd5 {[%clk 0:00:07]} 58. Kf4 {[%clk 0:00:18]}  Kd4 {[%clk 0:00:08]} 59. Kf3 {[%clk 0:00:19]}  Kc3 {[%clk 0:00:08]} 60. Kf2 {[%clk 0:00:20]}  Kxb4 {[%clk 0:00:09]} 61. Ke3 {[%clk 0:00:20]}  Kb3 {[%clk 0:00:10]} 62. Kd2 {[%clk 0:00:21]}  a5 {[%clk 0:00:10]} 63. Kc1 {[%clk 0:00:22]}  a4 {[%clk 0:00:10]} 64. Kb1 {[%clk 0:00:23]}  a3 {[%clk 0:00:11]} 65. Ka1 {[%clk 0:00:24]}  b4 {[%clk 0:00:11]} 66. Kb1 {[%clk 0:00:25]}  Ka4 {[%clk 0:00:11]} 67. Ka1 {[%clk 0:00:25]}  b3 {[%clk 0:00:11]} 68. Kb1 {[%clk 0:00:26]}  Kb4 {[%clk 0:00:12]} 69. Ka1 {[%clk 0:00:27]}  Bd5 {[%clk 0:00:11]} 70. Kb1 {[%clk 0:00:28]}  Be4+ {[%clk 0:00:11]} 71. Ka1 {[%clk 0:00:29]}  b2+ {[%clk 0:00:11]} 72. Ka2 {[%clk 0:00:29]}  b1=Q# {[%clk 0:00:11]} 0-1


[Site "https://www.chess.com"]